bitfinex-derivatives/quotes_ETHF0:USTF0_20250331
["timestamp","ask_amount","ask_price","bid_price","bid_amount"]
[1743438673246,4.29189,1845.0,1844.9,1.418]
[1743438673645,1.08427,1844.7,1844.6,1.4814]
[1743438673949,1.08427,1844.7,1844.6,2.8398]
[1743438674249,1.08427,1844.7,1844.6,3.56777633]
[1743438674449,1.08427,1844.7,1844.5,0.00813758]
[1743438674450,1.08433,1844.6,1844.5,0.00813758]
[1743438675046,4.81133,1844.6,1844.5,0.00813758]
[1743438675351,8.01913,1844.6,1844.5,0.00813758]
[1743438680554,4.29213,1844.6,1844.5,0.00813758]
[1743438680740,8.01913,1844.6,1844.5,0.00813758]
[1743438683149,4.81133,1844.6,1844.5,0.00813758]
[1743438683350,8.01913,1844.6,1844.5,0.00813758]
[1743438685955,4.29213,1844.6,1844.5,0.00813758]
[1743438686259,8.01913,1844.6,1844.5,0.00813758]
[1743438686455,8.01913,1844.6,1844.5,1.38433758]
[1743438687452,1.08456,1844.2,1844.1,0.6824]
[1743438687659,8.01936,1844.2,1844.1,0.6824]
[1743438688758,8.01936,1844.2,1844.1,2.0586]
[1743438692060,4.81156,1844.2,1844.1,2.0586]
[1743438692261,8.01936,1844.2,1844.1,2.0586]
[1743438692464,4.81156,1844.2,1844.1,2.0586]
[1743438692657,8.01936,1844.2,1844.1,2.0586]
[1743438693362,8.01936,1844.2,1844.1,1.3762]
[1743438694064,8.73276,1844.2,1844.1,1.3762]
[1743438694963,8.01936,1844.2,1844.1,1.3762]
[1743438696066,4.81156,1844.2,1844.1,1.3762]
[1743438696261,8.01936,1844.2,1844.1,1.3762]
[1743438696566,4.81156,1844.2,1844.1,1.3762]
[1743438696763,8.01936,1844.2,1844.1,1.3762]
[1743438696969,4.81156,1844.2,1844.1,1.3762]
[1743438697166,8.01936,1844.2,1844.1,1.3762]
[1743438699769,1.08456,1844.2,1844.1,2.46082]
[1743438700070,3.727,1844.2,1844.1,2.46082]
[1743438700266,0.00813758,1844.3,1844.1,1.3762]
[1743438700466,0.00813758,1844.3,1844.2,4.01446]
[1743438700467,1.09267758,1844.3,1844.2,4.01446]
[1743438700869,0.00813758,1844.3,1844.2,4.01446]
[1743438701263,1.08438,1844.6,1844.5,1.08439]
[1743438701473,6.9348,1844.8,1844.3,1.478]
[1743438701663,6.9348,1844.8,1844.3,6.9003]
[1743438701863,1.08432,1844.7,1844.6,1.08431]
[1743438702074,9.64541,1844.8,1844.4,1.478]
[1743438702474,1.08436,1844.6,1844.5,1.08436]
[1743438702675,1.08433,1844.7,1844.6,1.0843]
[1743438703081,1.08432,1844.7,1844.6,1.08431]
[1743438703371,8.02718758,1844.8,1844.7,1.08427]
[1743438703678,0.00813758,1844.8,1844.7,2.56227]
[1743438703869,0.00813758,1844.8,1844.7,3.28988704]
[1743438704478,1.08401,1845.2,1844.8,2.71049]
[1743438704665,8.01876,1845.3,1845.1,1.08403]
[1743438704974,8.01876,1845.3,1844.9,2.19523573]
[1743438704975,3.2078,1845.3,1845.2,3.30248]
[1743438705278,1.08385,1845.5,1845.2,2.2185]
[1743438705473,3.2078,1845.7,1845.3,12.1729]
[1743438705474,2.10209,1845.7,1845.3,12.1729]
[1743438705780,25.49916741,1846.2,1846.1,1.08345]
[1743438706175,25.49916741,1846.2,1846.1,4.3089749]
[1743438706479,25.49916741,1846.2,1846.1,5.05135]
[1743438706876,0.00813758,1846.3,1846.2,1.08339]
[1743438707076,0.00813758,1846.3,1846.2,5.75909]
[1743438707772,1.08319,1846.6,1846.4,1.08323]
[1743438708075,6.9338,1846.8,1846.4,1.08324]
[1743438708279,1.08321,1846.6,1846.5,1.4232]
[1743438710381,0.00813758,1846.7,1846.5,1.4232]
[1743438710881,1.08315,1846.6,1846.5,1.4232]
[1743438712675,4.29095,1846.6,1846.5,1.4232]
[1743438713678,1.08315,1846.6,1846.5,1.4232]
[1743438714078,4.29095,1846.6,1846.5,1.4232]
[1743438714380,1.08315,1846.6,1846.5,1.4232]
[1743438714577,4.29095,1846.6,1846.5,1.4232]
[1743438715581,1.08315,1846.6,1846.5,1.4232]
[1743438715987,0.00813758,1846.7,1846.5,2.50641]
[1743438716286,1.09126758,1846.7,1846.6,1.08315]
[1743438716587,1.09126758,1846.7,1846.5,1.4232]
[1743438716588,1.08315,1846.6,1846.5,1.4232]
[1743438717285,5.69725,1846.6,1846.5,1.4232]
[1743438721381,4.29095,1846.6,1846.5,1.4232]
[1743438724792,1.08321,1846.5,1846.4,0.00813758]
[1743438725087,2.55781,1846.5,1846.4,0.00813758]
[1743438725488,6.27881,1846.5,1846.4,0.00813758]
[1743438728090,1.08351,1846.0,1845.9,0.7506]
[1743438728286,1.0838,1845.5,1845.2,3.2078]
[1743438728485,2.70915,1845.8,1845.2,3.2078]
[1743438728486,3.2078,1845.7,1845.3,0.7041]
[1743438728794,4.80465,1845.8,1845.7,1.08368]
[1743438728989,1.08362,1845.8,1845.4,5.91745]
[1743438729196,1.08371,1845.7,1845.4,3.2078]
[1743438729491,1.08369,1845.7,1845.6,1.08371]
[1743438729887,3.21593758,1845.8,1845.5,1.3929]
[1743438730186,4.29959758,1845.8,1845.7,1.08368]
[1743438730382,0.00813758,1845.8,1845.7,1.08368]
[1743438730587,0.00813758,1845.8,1845.7,3.86618]
[1743438731186,0.00813758,1845.8,1845.7,6.36618]
[1743438731788,0.00813758,1845.8,1845.7,3.86618]
[1743438732388,0.00813758,1845.8,1845.7,4.58922264]
[1743438732588,1.09175758,1845.8,1845.7,4.58922264]
[1743438732790,1.09175758,1845.8,1845.7,4.59016693]
[1743438733187,1.09175758,1845.8,1845.7,2.7825]
[1743438733388,1.09175758,1845.8,1845.7,1.3929]
[1743438734089,2.55305758,1845.8,1845.7,2.47658]
[1743438734397,2.55305758,1845.8,1845.7,1.3929]
[1743438734893,4.17861758,1845.8,1845.4,5.70232758]
[1743438735096,1.0838,1845.5,1845.4,5.70232758]
[1743438735395,1.0838,1845.5,1845.4,2.13693461]
[1743438735596,1.0838,1845.5,1845.4,3.22079461]
[1743438736589,2.55208,1845.6,1845.4,2.13693461]
[1743438736896,2.55208,1845.6,1845.5,2.4412]
[1743438736897,2.55204,1845.6,1845.5,2.4412]
[1743438737396,2.55204,1845.6,1845.5,1.3574]
[1743438737900,2.55204,1845.6,1845.4,1.41073758]
[1743438737901,1.0838,1845.5,1845.4,0.00813758]
[1743438738087,5.6932,1845.5,1845.4,1.50603758]
[1743438738295,9.4142,1845.5,1845.4,1.50603758]
[1743438738496,9.4142,1845.5,1845.4,2.58989758]
[1743438739006,3.2078,1845.5,1845.4,2.58989758]
[1743438739302,4.2916,1845.5,1845.4,2.58989758]
[1743438742193,4.2916,1845.5,1845.4,1.50603758]
[1743438742800,4.2916,1845.5,1845.4,2.58989758]
[1743438742997,4.6384,1845.5,1845.4,2.58989758]
[1743438743302,5.7222,1845.5,1845.4,1.50603758]
[1743438743907,5.7222,1845.5,1845.4,2.58989758]
[1743438744098,1.4306,1845.5,1845.4,2.58989758]
[1743438744498,2.5144,1845.5,1845.4,2.58989758]
[1743438746299,1.4306,1845.5,1845.4,2.58989758]
[1743438746602,2.5144,1845.5,1845.4,2.58989758]
[1743438746902,3.2078,1846.6,1845.9,2.70891]
[1743438747106,1.08343,1846.2,1846.1,1.08342]
[1743438747295,1.08344,1846.2,1846.1,1.08343]
[1743438748004,1.08345,1846.1,1846.0,2.48879]
[1743438748404,2.58881,1846.2,1846.1,1.08345]
[1743438748600,0.00813758,1846.3,1846.0,1.4053]
[1743438748803,1.51353758,1846.3,1846.2,1.08339]
[1743438748996,1.08341,1846.2,1846.1,1.08342]
[1743438749200,1.51353758,1846.3,1846.0,4.6131]
[1743438749497,0.00813758,1846.3,1846.2,1.08339]
[1743438750204,0.00813758,1846.3,1846.2,2.56339]
[1743438751309,0.00813758,1846.3,1846.2,5.77119]
[1743438753608,1.39003758,1846.3,1846.2,5.77119]
[1743438753811,2.47336758,1846.3,1846.2,5.77119]
[1743438754402,1.39003758,1846.3,1846.2,5.77119]
[1743438754706,2.47336758,1846.3,1846.2,5.77119]
[1743438755303,0.00813758,1846.3,1846.2,5.77119]
[1743438756807,1.09146758,1846.3,1846.2,5.77119]
[1743438757708,0.00813758,1846.3,1846.2,5.77119]
[1743438760303,1.09146758,1846.3,1846.2,5.77119]
[1743438760812,0.00813758,1846.3,1846.2,5.77119]
[1743438764418,1.09146758,1846.3,1846.2,5.77119]
[1743438764715,1.09146758,1846.3,1846.2,1.48]
[1743438765112,2.57196758,1846.3,1846.2,1.48]
[1743438765420,3.95416758,1846.3,1846.2,2.56339]
[1743438765812,3.95416758,1846.3,1846.2,1.48]
[1743438766011,3.95416758,1846.3,1846.2,2.56339]
[1743438766219,3.95416758,1846.3,1846.2,1.48]
[1743438766520,2.87083758,1846.3,1846.2,2.56339]
[1743438766718,3.95416758,1846.3,1846.2,2.56339]
[1743438766916,1.39033758,1846.3,1846.2,2.56339]
[1743438767615,2.47366758,1846.3,1846.2,2.56339]
[1743438769611,2.47366758,1846.3,1845.8,3.719]
[1743438769612,1.39033758,1846.3,1845.5,0.44212284]
[1743438769816,3.2078,1845.6,1845.5,1.0838]
[1743438770014,3.2078,1845.6,1845.4,0.75013758]
[1743438770220,1.0838,1845.5,1845.4,0.75013758]
[1743438770518,2.5349,1845.5,1845.4,0.00813758]
[1743438770715,6.2539,1845.5,1845.4,0.00813758]
[1743438773520,1.08403,1845.1,1845.0,0.6882]
[1743438773725,4.29183,1845.1,1845.0,0.6882]
[1743438773932,5.1333,1845.2,1845.0,1.77225]
[1743438774122,3.719,1845.2,1845.0,1.77225]
[1743438774323,8.2916,1845.3,1845.1,1.08401]
[1743438774522,1.08398,1845.2,1845.1,1.76511]
[1743438774726,1.08398,1845.2,1845.1,0.6811]
[1743438775625,1.08398,1845.2,1845.1,1.76513]
[1743438775821,1.08398,1845.2,1845.1,0.6811]
[1743438776425,1.08403,1845.1,1845.0,0.69633758]
[1743438776617,4.29183,1845.1,1845.0,0.69633758]
[1743438777926,4.29183,1845.1,1845.0,1.78042758]
[1743438778319,4.29183,1845.1,1845.0,0.69633758]
[1743438778828,4.29183,1845.1,1845.0,1.78042758]
[1743438779034,1.08403,1845.1,1845.0,1.78042758]
[1743438779218,2.44782,1845.2,1845.0,0.69633758]
[1743438779423,1.08403,1845.1,1845.0,1.78037758]
[1743438780530,1.08403,1845.1,1845.0,1.78042758]
[1743438780728,1.08403,1845.1,1845.0,0.69633758]
[1743438781423,1.08403,1845.1,1845.0,2.18533758]
[1743438782222,4.29183,1845.1,1845.0,2.18533758]
[1743438784727,4.29183,1845.1,1845.0,3.26942758]
[1743438784932,4.80402,1845.2,1845.1,1.08403]
[1743438785229,4.80402,1845.2,1845.1,2.47963]
[1743438787425,3.41931758,1845.4,1845.1,1.3956]
[1743438787426,0.00813758,1845.4,1845.1,1.3956]
[1743438787631,4.29151,1845.7,1845.6,1.08374]
[1743438787831,1.08366,1845.8,1845.7,1.08366]
[1743438788024,1.08371,1845.7,1845.6,1.0837]
[1743438788632,1.08371,1845.7,1845.6,1.8368]
[1743438789136,1.08386,1845.4,1845.3,3.2078]
[1743438789430,1.08403,1845.1,1845.0,0.00813758]
[1743438789632,8.01683,1845.1,1845.0,0.00813758]
[1743438789831,3.2078,1845.1,1845.0,1.09222758]
[1743438790036,2.1819,1845.2,1845.0,0.00813758]
[1743438790239,3.2078,1845.1,1845.0,0.00813758]
[1743438790539,4.29183,1845.1,1845.0,0.00813758]
[1743438790926,5.76563,1845.1,1845.0,0.00813758]
[1743438799936,3.2078,1845.1,1845.0,1.09222758]
[1743438800337,4.29183,1845.1,1845.0,1.09222758]
[1743438800641,3.2078,1845.3,1845.0,0.00813758]
[1743438800943,5.91718,1845.6,1845.1,0.72725168]
[1743438801146,4.29176,1845.3,1845.2,1.08395]
[1743438802746,1.08398,1845.2,1845.1,2.59138]
[1743438802948,1.08398,1845.2,1845.1,3.31859941]
[1743438804047,1.08398,1845.2,1845.1,3.31858204]
[1743438804847,4.29176,1845.3,1845.2,1.08398]
[1743438805046,4.29176,1845.3,1845.2,2.47108]
[1743438807147,4.29176,1845.3,1845.2,1.3871]
[1743438807740,5.75766,1845.3,1845.2,1.3871]
[1743438808142,4.29176,1845.3,1845.2,2.47108]
[1743438808445,3.2078,1845.3,1845.2,2.47108]
[1743438808648,4.29172,1845.3,1845.2,2.47108]
[1743438809447,4.29172,1845.3,1845.2,1.3871]
[1743438809742,4.29172,1845.3,1845.2,2.47108]
[1743438810448,1.08392,1845.3,1845.2,2.47108]
[1743438810749,4.29172,1845.3,1845.2,2.47108]
[1743438812349,3.2078,1845.5,1845.4,1.08386]
[1743438812546,4.29152,1845.7,1845.6,1.08374]
[1743438812740,3.2078,1845.9,1845.7,1.08368]
[1743438812947,1.09178758,1845.8,1845.7,1.08368]
[1743438813846,1.09178758,1845.8,1845.7,2.53658]
[1743438814051,1.09178758,1845.8,1845.7,1.4529]
[1743438814242,1.09178758,1845.8,1845.7,2.53658]
[1743438814551,1.09178758,1845.8,1845.7,3.99838]
[1743438814948,1.09178758,1845.8,1845.7,2.9147]
[1743438815145,1.09178758,1845.8,1845.7,3.99838]
[1743438815350,2.50908758,1845.8,1845.7,3.99838]
[1743438815551,2.50908758,1845.8,1845.7,2.9147]
[1743438816247,2.50908758,1845.8,1845.7,3.99838]
[1743438816956,2.50908758,1845.8,1845.7,2.9147]
[1743438817653,2.50908758,1845.8,1845.7,2.1777]
[1743438821856,1.09178758,1845.8,1845.7,2.1777]
[1743438822053,1.09178758,1845.8,1845.7,3.26138]
[1743438822252,0.00813758,1845.8,1845.7,3.26138]
[1743438822548,1.09175758,1845.8,1845.7,3.26138]
[1743438826658,0.00813758,1845.8,1845.7,3.26138]
[1743438826961,1.09175758,1845.8,1845.7,3.26138]
[1743438832162,2.48165758,1845.8,1845.7,3.26138]
[1743438832462,1.09175758,1845.8,1845.7,3.26138]
[1743438834260,0.00813758,1845.8,1845.7,3.26138]
[1743438834463,0.00813758,1845.8,1845.7,3.9887898]
[1743438835662,1.09175758,1845.8,1845.7,3.9887898]
[1743438836160,1.09175758,1845.8,1845.7,3.98891515]
[1743438836576,0.00813758,1845.8,1845.7,3.98891515]
[1743438836775,1.09175758,1845.8,1845.7,3.98891515]
[1743438836971,1.09175758,1845.8,1845.7,3.989087]
[1743438837380,1.09175758,1845.8,1845.7,4.726387]
[1743438837674,0.00813758,1845.8,1845.7,4.726387]
[1743438838075,0.00813758,1845.8,1845.7,4.72660679]
[1743438839971,0.00813758,1845.8,1845.7,4.72768915]
[1743438840467,0.00813758,1845.8,1845.7,4.72767998]
[1743438840668,1.09175758,1845.8,1845.7,3.64399998]
[1743438840864,2.51325758,1845.8,1845.7,3.99037998]
[1743438841069,3.23005758,1845.8,1845.7,3.99037998]
[1743438841274,2.14643758,1845.8,1845.7,3.99037998]
[1743438841577,0.00813758,1845.8,1845.7,3.99037998]
[1743438842069,0.00813758,1845.8,1845.7,3.99031376]
[1743438842875,1.09175758,1845.8,1845.7,3.99031376]
[1743438843275,1.09175758,1845.8,1845.7,3.99033095]
[1743438843276,2.51325758,1845.8,1845.7,3.99033095]
[1743438843769,2.51325758,1845.8,1845.7,2.90665095]
[1743438843973,2.51325758,1845.8,1845.7,2.19075095]
[1743438843974,3.25645758,1845.8,1845.7,2.19075095]
[1743438844169,3.25645758,1845.8,1845.7,1.4618]
[1743438845575,3.25645758,1845.8,1845.7,2.54548]
[1743438845977,0.00813758,1845.8,1845.7,3.2744813]
[1743438847378,0.00813758,1845.8,1845.7,2.54548]
[1743438847579,0.00813758,1845.8,1845.7,3.27443451]
[1743438847774,3.2078,1846.1,1846.0,1.08351]
[1743438847976,3.2078,1846.1,1846.0,1.81246451]
[1743438848179,3.2078,1846.3,1846.2,1.08339]
[1743438848379,4.29113,1846.3,1846.2,1.81234451]
[1743438848582,4.29113,1846.3,1846.2,3.27134451]
[1743438848876,3.2078,1846.3,1846.2,3.27134451]
[1743438849080,4.29113,1846.3,1846.2,3.27082496]
[1743438849775,3.2078,1846.3,1846.2,3.27082496]
[1743438849976,0.00813758,1846.4,1846.3,1.08333]
[1743438850175,0.00813758,1846.4,1846.3,3.24996496]
[1743438851081,0.00813758,1846.4,1846.3,3.24920451]
[1743438852384,1.39533758,1846.4,1846.3,2.52153]
[1743438852682,0.00813758,1846.4,1846.3,2.52153]
[1743438852883,0.00813758,1846.4,1846.3,3.24860942]
[1743438853187,0.00813758,1846.4,1846.3,3.24861774]
[1743438853374,0.00813758,1846.4,1846.3,2.52153]
[1743438853576,0.00813758,1846.4,1846.3,3.24835211]
[1743438853984,0.00813758,1846.4,1846.3,2.52153]
[1743438857089,0.00813758,1846.4,1846.3,3.24785467]
[1743438858590,0.00813758,1846.4,1846.3,3.24745983]
[1743438862392,0.00813758,1846.4,1846.3,3.24694818]
[1743438863089,0.00813758,1846.4,1846.3,2.52153]
[1743438863291,1.09140758,1846.4,1846.3,2.52153]
[1743438863490,2.56750758,1846.4,1846.3,2.52153]
[1743438865397,2.00564157,1846.4,1846.3,2.52153]
[1743438867792,2.00564157,1846.4,1846.3,1.4382]
[1743438868391,2.00564157,1846.4,1846.3,2.52153]
[1743438868894,2.00564157,1846.4,1846.3,1.4382]
[1743438870087,1.08339,1846.2,1846.1,1.78054758]
[1743438870289,1.08339,1846.2,1846.1,0.00813758]
[1743438870290,4.29119,1846.2,1846.1,0.00813758]
[1743438870691,5.03109,1846.2,1846.1,0.00813758]
[1743438870891,6.45789,1846.2,1846.1,0.00813758]
[1743438871089,1.08356,1845.9,1845.8,2.55249]
[1743438871293,4.29136,1845.9,1845.8,2.55249]
[1743438871489,2.51794,1846.0,1845.9,1.08356]
[1743438873700,3.21593758,1846.1,1846.0,1.08351]
[1743438874000,1.08356,1845.9,1845.8,1.83590758]
[1743438874704,2.51795,1846.0,1845.9,1.08356]
[1743438875307,3.21593758,1846.1,1846.0,1.08351]
[1743438875699,3.21593758,1846.1,1846.0,1.81027632]
[1743438875997,3.21593758,1846.1,1846.0,1.08351]
[1743438876192,3.21593758,1846.1,1846.0,1.81027242]
[1743438876598,3.21593758,1846.1,1846.0,1.81042741]
[1743438877811,4.29938758,1846.1,1846.0,1.81042741]
[1743438878008,1.09158758,1846.1,1846.0,1.08351]
[1743438879100,0.00813758,1846.1,1846.0,1.08351]
[1743438879301,1.09158758,1846.1,1846.0,1.08351]
[1743438882708,4.29938758,1846.1,1846.0,1.08351]
[1743438884910,5.00768758,1846.1,1846.0,1.08351]
[1743438887212,1.08356,1846.0,1845.9,1.08352]
[1743438887510,2.56006,1846.0,1845.9,1.08352]
[1743438887906,1.08356,1845.9,1845.8,1.09171758]
[1743438888101,5.76786,1845.9,1845.8,0.00813758]
[1743438888901,5.76786,1845.9,1845.8,1.09175758]
[1743438889105,5.76786,1845.9,1845.8,0.00813758]
[1743438890817,5.76786,1845.9,1845.8,1.09175758]
[1743438891014,5.76786,1845.9,1845.8,0.00813758]
[1743438891716,9.48286,1845.9,1845.8,1.09175758]
[1743438891919,9.48286,1845.9,1845.8,3.15905758]
[1743438892211,5.00775758,1846.1,1846.0,1.08351]
[1743438893015,1.08351,1846.0,1845.9,2.44312]
[1743438893204,1.08351,1846.0,1845.9,1.3596]
[1743438893410,2.49031,1846.0,1845.9,1.3596]
[1743438894103,1.08356,1845.9,1845.8,0.71583758]
[1743438894308,9.41216,1845.9,1845.8,0.71583758]
[1743438895711,9.41216,1845.9,1845.8,2.18023758]
[1743438896608,9.41216,1845.9,1845.8,1.47253758]
[1743438900216,3.21593758,1846.1,1846.0,1.08351]
[1743438900518,0.00813758,1846.1,1846.0,1.08351]
[1743438900710,0.00813758,1846.1,1846.0,3.31791478]
[1743438901317,3.2078,1846.3,1846.2,1.08339]
[1743438901507,3.2078,1846.3,1846.2,1.81100398]
[1743438901713,4.29101,1846.5,1846.4,1.08327]
[1743438902113,3.2078,1846.5,1846.4,1.08327]
[1743438902313,4.29101,1846.5,1846.4,2.49197]
[1743438903516,4.29101,1846.5,1846.4,1.4087]
[1743438903721,5.74491,1846.5,1846.4,1.4087]
[1743438905016,5.74491,1846.5,1846.4,2.49197]
[1743438905310,5.74491,1846.5,1846.4,1.4087]
[1743438906221,5.74491,1846.5,1846.4,2.49197]
[1743438906618,5.74491,1846.5,1846.4,1.4087]
[1743438907717,1.08333,1846.3,1846.2,0.6932]
[1743438907914,4.29113,1846.3,1846.2,0.6932]
[1743438908416,6.48883,1846.3,1846.2,2.0925]
[1743438908623,6.48883,1846.3,1846.2,3.17589]
[1743438909431,2.1977,1846.3,1846.2,3.17589]
[1743438909619,4.29113,1846.3,1846.2,2.0925]
[1743438909819,1.08333,1846.3,1846.2,2.0925]
[1743438910014,4.29113,1846.3,1846.2,2.8459]
[1743438910219,4.29113,1846.3,1846.2,2.0925]
[1743438910419,5.77473,1846.3,1846.2,2.0925]
[1743438911020,4.29113,1846.3,1846.2,3.17589]
[1743438911927,4.29113,1846.3,1846.2,2.0925]
[1743438912430,4.29113,1846.3,1846.2,1.3993]
[1743438912726,1.08351,1846.0,1845.9,1.4276]
[1743438913029,8.00431,1846.0,1845.9,1.4276]
[1743438914126,8.00431,1846.0,1845.9,2.9285]
[1743438914328,8.00431,1846.0,1845.9,2.2093]
[1743438914928,8.00431,1846.0,1845.9,1.5009]
[1743438917724,1.08356,1845.9,1845.8,0.00813758]
[1743438917930,4.81554,1845.9,1845.5,0.6816]
[1743438918134,4.29154,1845.6,1845.5,2.0753]
[1743438919130,5.70884,1845.6,1845.5,2.0753]
[1743438919937,5.70884,1845.6,1845.5,1.3937]
[1743438920227,5.70884,1845.6,1845.4,0.00813758]
[1743438920228,1.0838,1845.5,1845.4,0.00813758]
[1743438920436,2.5724,1845.5,1845.4,0.00813758]
[1743438922620,1.08409,1845.0,1844.9,0.7324]
[1743438922831,4.29189,1845.0,1844.9,0.7324]
[1743438924027,4.29189,1845.0,1844.9,2.1941]
[1743438924931,4.29189,1845.0,1844.9,1.4617]
[1743438925139,5.75039,1845.0,1844.9,1.4617]
[1743438925338,7.16179,1845.0,1844.9,1.4617]
[1743438926134,1.08415,1844.9,1844.8,0.71973758]
[1743438926442,2.52505,1844.9,1844.8,0.71973758]
[1743438927846,2.52505,1844.9,1844.8,0.00813758]
[1743438929644,2.71083,1844.6,1844.2,1.08453]
[1743438929847,1.08433,1844.6,1844.5,1.4996]
[1743438930046,1.08433,1844.6,1844.2,0.6965]
[1743438930047,1.0845,1844.3,1844.2,0.6965]
[1743438930344,8.0053,1844.3,1844.2,1.4497]
[1743438930542,9.63221,1844.3,1843.5,16.34804505]
[1743438930747,1.08456,1844.2,1844.1,0.00813758]
[1743438931045,3.2078,1844.2,1844.1,0.00813758]
[1743438931250,4.29236,1844.2,1844.1,0.00813758]
[1743438931440,3.2078,1844.2,1844.1,3.30055758]
[1743438931641,3.2078,1844.2,1844.1,2.21593758]
[1743438931642,4.29236,1844.2,1844.1,2.21593758]
[1743438931851,8.00536,1844.2,1844.1,3.30055758]
[1743438932252,8.00536,1844.2,1844.1,2.21593758]
[1743438933147,8.00536,1844.2,1844.1,3.30055758]
[1743438933540,6.9208,1844.2,1844.1,3.30055758]
[1743438934049,4.79756,1844.2,1844.1,2.21593758]
[1743438934247,3.713,1844.2,1844.1,3.30055758]
[1743438934447,6.9208,1844.2,1844.1,3.30055758]
[1743438934647,8.00536,1844.2,1844.1,3.30055758]
[1743438934850,8.00536,1844.2,1844.1,2.21593758]
[1743438935048,8.00536,1844.2,1844.1,3.30055758]
[1743438935443,4.79756,1844.2,1844.1,3.30055758]
[1743438935848,8.00536,1844.2,1844.1,3.30055758]
[1743438936851,8.00536,1844.2,1844.1,2.21593758]
[1743438937251,3.21593758,1844.4,1844.3,1.0845]
[1743438937454,4.30038758,1844.4,1844.3,1.0845]
[1743438937852,4.30038758,1844.4,1844.3,2.573]
[1743438939648,4.30038758,1844.4,1844.3,1.4885]
[1743438940048,4.30038758,1844.4,1844.3,2.573]
[1743438940460,4.30038758,1844.4,1844.3,1.4885]
[1743438940957,4.30038758,1844.4,1844.3,2.573]
[1743438941254,3.21593758,1844.4,1844.3,2.573]
[1743438942059,4.30038758,1844.4,1844.3,2.573]
[1743438943260,3.21593758,1844.4,1844.3,2.573]
[1743438943658,54.645,1844.7,1844.4,1.08445]
[1743438943956,3.714,1844.9,1844.8,1.08421]
[1743438944263,4.79807,1845.1,1845.0,1.08409]
[1743438944957,4.79807,1845.1,1845.0,2.50869]
[1743438945264,1.08403,1845.1,1845.0,1.4246]
[1743438945559,1.08403,1845.1,1845.0,2.50869]
[1743438945756,4.29183,1845.1,1845.0,1.4246]
[1743438946062,1.08434,1844.6,1844.5,1.08435]
[1743438946260,1.08434,1844.6,1844.5,1.81215]
[1743438946558,1.08434,1844.6,1844.5,0.7278]
[1743438946750,9.63155,1844.7,1844.3,1.08445]
[1743438947057,1.08446,1844.4,1844.3,0.6985]
[1743438947263,4.79746,1844.4,1844.3,0.6985]
[1743438947661,4.79746,1844.4,1844.2,0.7499]
[1743438947662,1.0845,1844.3,1844.2,0.7499]
[1743438947865,1.0845,1844.3,1844.2,1.83446]
[1743438948161,1.0845,1844.3,1844.2,2.53296]
[1743438948362,1.0845,1844.3,1844.2,3.97606]
[1743438948558,1.0845,1844.3,1844.2,2.8915]
[1743438948759,1.0845,1844.3,1844.2,3.97606]
[1743438949466,4.79749,1844.4,1844.2,3.97606]
[1743438949667,4.79749,1844.4,1844.3,1.4431]
[1743438950259,6.28239,1844.4,1844.3,1.4431]
[1743438950461,6.97349,1844.4,1844.3,1.4431]
[1743438951560,1.08456,1844.2,1844.1,0.00813758]
[1743438951765,1.08456,1844.2,1844.1,1.45213758]
[1743438952368,2.51486,1844.2,1844.1,1.45213758]
[1743438953060,1.08456,1844.2,1844.1,1.45213758]
[1743438953268,4.29235,1844.3,1844.1,1.45213758]
[1743438953470,4.2923,1844.3,1844.2,1.08456]
[1743438953668,3.2078,1844.3,1844.2,1.08456]
[1743438954170,1.08456,1844.2,1844.1,2.53670758]
[1743438954365,1.08456,1844.2,1844.1,3.2638858]
[1743438954571,1.08456,1844.2,1844.1,3.26389432]
[1743438955672,1.08456,1844.2,1844.1,2.53670758]
[1743438956966,1.81825,1844.3,1844.2,1.08456]
[1743438957172,1.08455,1844.3,1844.2,3.23986]
[1743438957473,1.08455,1844.3,1844.2,2.1553]
[1743438957869,2.57455,1844.3,1844.2,2.1553]
[1743438959375,1.08455,1844.3,1844.2,3.23986]
[1743438959668,3.713,1844.5,1844.2,8.59067607]
[1743438959873,1.08445,1844.4,1844.3,2.1638]
[1743438960064,3.26935,1844.4,1844.3,1.441]
[1743438961566,1.08445,1844.4,1844.3,1.441]
[1743438961774,3.26935,1844.4,1844.3,2.5255]
[1743438961974,3.26935,1844.4,1844.3,1.441]
[1743438962166,6.47715,1844.4,1844.3,1.441]
[1743438963476,1.08456,1844.2,1844.1,0.00813758]
[1743438963774,8.00536,1844.2,1844.1,0.00813758]
[1743438964163,9.39626,1844.2,1844.1,0.00813758]
[1743438965570,6.18846,1844.2,1844.1,0.00813758]
[1743438965768,9.39626,1844.2,1844.1,0.00813758]
[1743438967871,9.39626,1844.2,1844.1,7.58e-06]
[1743438968078,11.89626,1844.2,1844.1,7.58e-06]
[1743438968575,12.32744652,1844.2,1844.1,7.58e-06]
[1743438971587,1.08492,1843.6,1843.5,1.4425]
[1743438971775,8.00472,1843.6,1843.5,1.4425]
[1743438972277,4.79692,1843.6,1843.5,1.4425]
[1743438972477,6.27872,1843.6,1843.5,1.4425]
[1743438972682,9.48652,1843.6,1843.5,1.4425]
[1743438974376,6.27872,1843.6,1843.5,1.4425]
[1743438974781,9.48652,1843.6,1843.5,1.4425]
[1743438974982,4.79692,1843.6,1843.5,1.4425]
[1743438975380,8.00472,1843.6,1843.5,1.4425]
[1743438975579,9.46082,1843.6,1843.5,1.4425]
[1743438978079,1.08497,1843.5,1843.4,0.00813758]
[1743438978279,2.48807,1843.5,1843.4,0.00813758]
[1743438978886,2.48807,1843.5,1843.4,1.44893758]
[1743438980578,1.08509,1843.3,1843.2,0.6824]
[1743438980783,4.79809,1843.3,1843.2,0.6824]
[1743438982385,4.79809,1843.3,1843.2,1.76755]
[1743438982586,4.79809,1843.3,1843.2,0.6824]
[1743438983894,4.79809,1843.3,1843.2,2.1818]
[1743438986189,6.20959,1843.3,1843.2,2.1818]
[1743438986793,6.92539,1843.3,1843.2,0.63820575]